bitfinex-derivatives/quotes_BTCF0:USTF0_20250614
["timestamp","ask_amount","ask_price","bid_price","bid_amount"]
[1749918592609,1.77514594,104780.0,104770.0,0.38426399]
[1749918593313,1.8527841,104780.0,104770.0,0.38426399]
[1749918594113,1.94222667,104780.0,104770.0,0.38426399]
[1749918595613,1.88270473,104780.0,104770.0,0.38426399]
[1749918597518,2.85786473,104780.0,104770.0,0.38426399]
[1749918598821,2.79226473,104780.0,104770.0,0.38426399]
[1749918599021,2.79226473,104780.0,104770.0,0.41446399]
[1749918599423,2.79226473,104780.0,104770.0,0.39446399]
[1749918599822,1.22834074,104780.0,104770.0,0.58527209]
[1749918600017,3.44796649,104780.0,104770.0,0.98465485]
[1749918600519,3.67673048,104780.0,104770.0,0.98465485]
[1749918601118,3.67673048,104780.0,104770.0,0.79384675]
[1749918601827,2.88917048,104780.0,104770.0,0.79384675]
[1749918602326,2.66040649,104780.0,104770.0,0.98465485]
[1749918602527,2.88917048,104780.0,104770.0,0.92527209]
[1749918603021,2.66040649,104780.0,104770.0,0.92527209]
[1749918603223,2.88917048,104780.0,104770.0,0.92527209]
[1749918605425,2.89330883,104780.0,104770.0,0.98465485]
[1749918606327,2.66454484,104780.0,104770.0,0.98465485]
[1749918606630,2.89330883,104780.0,104770.0,0.92527209]
[1749918607129,2.70570883,104780.0,104770.0,0.92527209]
[1749918607322,2.89190883,104780.0,104770.0,0.92527209]
[1749918608928,2.89190883,104780.0,104770.0,0.6965081]
[1749918609129,2.89190883,104780.0,104770.0,0.92527209]
[1749918610223,1.52086883,104780.0,104770.0,0.92527209]
[1749918610422,2.53190883,104780.0,104770.0,0.92527209]
[1749918610619,1.52086883,104780.0,104770.0,0.92527209]
[1749918610830,2.30314484,104780.0,104770.0,0.92527209]
[1749918611026,2.53190883,104780.0,104770.0,0.92527209]
[1749918611223,1.52086883,104780.0,104770.0,0.92527209]
[1749918611425,2.53190883,104780.0,104770.0,0.92527209]
[1749918612030,2.53190883,104780.0,104770.0,0.73446399]
[1749918612731,1.52086883,104780.0,104770.0,0.73446399]
[1749918612923,2.53190883,104780.0,104770.0,0.73446399]
[1749918613123,2.53190883,104780.0,104770.0,0.6965081]
[1749918613319,2.53190883,104780.0,104770.0,0.73446399]
[1749918613727,2.87190883,104780.0,104770.0,0.54446399]
[1749918613931,2.93400883,104780.0,104770.0,0.51426399]
[1749918614132,2.87438308,104780.0,104770.0,0.254]
[1749918614327,2.56548308,104780.0,104770.0,0.48276399]
[1749918614534,2.88548308,104780.0,104770.0,0.48276399]
[1749918615032,1.87444308,104780.0,104770.0,0.48276399]
[1749918615233,2.56548308,104780.0,104770.0,0.48276399]
[1749918615435,2.90548308,104780.0,104770.0,0.2208]
[1749918616134,2.90548308,104780.0,104770.0,0.154]
[1749918616537,2.90548308,104780.0,104770.0,0.002]
[1749918616729,0.190808,104770.0,104760.0,1.00523238]
[1749918617037,0.47921625,104770.0,104760.0,0.98062249]
[1749918617838,0.79921625,104770.0,104760.0,0.98062249]
[1749918618031,0.47921625,104770.0,104760.0,0.98062249]
[1749918619335,0.48221625,104770.0,104760.0,0.98062249]
[1749918619536,0.25345226,104770.0,104760.0,0.98062249]
[1749918619736,0.48221625,104770.0,104760.0,0.98062249]
[1749918619938,0.48221625,104770.0,104760.0,0.7518585]
[1749918620134,0.48221625,104770.0,104760.0,0.98062249]
[1749918620337,0.25345226,104770.0,104760.0,0.98062249]
[1749918620634,0.25759061,104770.0,104760.0,0.98062249]
[1749918622836,0.25759061,104770.0,104760.0,1.34142249]
[1749918623034,0.25759061,104770.0,104760.0,1.57018648]
[1749918623238,0.25759061,104770.0,104760.0,1.43073238]
[1749918623538,0.19794635,104770.0,104760.0,1.43073238]
[1749918624737,0.38414635,104770.0,104760.0,1.43073238]
[1749918625238,0.38214635,104770.0,104760.0,1.43073238]
[1749918625542,0.00413835,104770.0,104760.0,1.75494437]
[1749918625743,0.19494635,104770.0,104760.0,2.48304161]
[1749918626642,0.190808,104770.0,104760.0,2.48304161]
[1749918626844,0.190808,104770.0,104760.0,1.69556161]
[1749918627043,0.190808,104770.0,104760.0,2.83790856]
[1749918627535,0.25045226,104770.0,104760.0,2.74859867]
[1749918627741,0.25459061,104770.0,104760.0,2.74859867]
[1749918627940,0.19494635,104770.0,104760.0,2.74859867]
[1749918628140,0.25459061,104770.0,104760.0,2.74859867]
[1749918628542,0.19494635,104770.0,104760.0,2.83790856]
[1749918628739,0.19494635,104770.0,104760.0,2.74246056]
[1749918629250,0.19494635,104770.0,104760.0,2.51369657]
[1749918629745,0.19494635,104770.0,104760.0,2.74246056]
[1749918630538,0.25459061,104770.0,104760.0,2.65315067]
[1749918630739,0.06378261,104770.0,104760.0,2.65315067]
[1749918630947,0.25459061,104770.0,104760.0,2.65315067]
[1749918631143,0.4833546,104770.0,104760.0,1.40818269]
[1749918631344,0.68019061,104770.0,104760.0,2.03078668]
[1749918631747,0.68019061,104770.0,104760.0,2.00078668]
[1749918631947,0.68019061,104770.0,104760.0,1.21334668]
[1749918632145,0.68019061,104770.0,104760.0,2.00078668]
[1749918632446,0.68019061,104770.0,104760.0,1.70544668]
[1749918632642,1.00019061,104770.0,104760.0,1.70544668]
[1749918632836,0.68019061,104770.0,104760.0,1.70544668]
[1749918633246,0.68019061,104770.0,104760.0,1.73844668]
[1749918633544,0.68019061,104770.0,104760.0,1.77004668]
[1749918634446,0.31939061,104770.0,104760.0,1.77004668]
[1749918636043,0.50551061,104770.0,104760.0,1.77004668]
[1749918639045,0.25092,104770.0,104760.0,1.77004668]
[1749918639256,0.441728,104770.0,104760.0,1.77004668]
[1749918639854,0.44586635,104770.0,104760.0,1.77004668]
[1749918641956,0.44586635,104770.0,104760.0,1.81473522]
[1749918646351,0.44586635,104770.0,104760.0,1.77004668]
[1749918646658,0.44586635,104770.0,104760.0,0.75388269]
[1749918646963,1.48587291,104770.0,104760.0,0.21813348]
[1749918647153,1.48587291,104770.0,104760.0,0.05813395]
[1749918647353,1.15587291,104770.0,104760.0,0.05813395]
[1749918647749,1.41587291,104770.0,104760.0,0.05813395]
[1749918647962,1.41587291,104770.0,104760.0,0.0448404]
[1749918648260,1.41787291,104770.0,104760.0,0.00014324]
[1749918648559,1.92187291,104770.0,104760.0,0.00014324]
[1749918649262,1.92187291,104770.0,104750.0,0.04469716]
[1749918649263,0.1908263,104760.0,104750.0,0.04469716]
[1749918649559,1.16263221,104760.0,104750.0,0.42469716]
[1749918650062,1.52263221,104760.0,104750.0,0.42469716]
[1749918650362,1.16263221,104760.0,104750.0,0.38]
[1749918650561,1.16363221,104760.0,104750.0,0.38]
[1749918650863,1.16563221,104760.0,104750.0,0.38]
[1749918651361,0.1908445,104750.0,104740.0,0.0448404]
[1749918651565,1.47280235,104750.0,104740.0,0.37014324]
[1749918652855,1.53280235,104750.0,104740.0,0.37014324]
[1749918653260,1.15280235,104750.0,104740.0,0.37014324]
[1749918653562,1.49280235,104750.0,104740.0,0.37014324]
[1749918653961,1.49280235,104750.0,104740.0,0.38329727]
[1749918654163,1.54280235,104750.0,104740.0,0.38329727]
[1749918654464,0.78772897,104750.0,104740.0,0.08329727]
[1749918654765,0.37692897,104750.0,104740.0,0.79372396]
[1749918654963,0.8770045,104750.0,104740.0,1.14126993]
[1749918655157,0.8770045,104750.0,104740.0,1.20206993]
[1749918655858,0.8770045,104750.0,104740.0,0.84126993]
[1749918656053,0.68616,104750.0,104740.0,0.84126993]
[1749918656272,0.6908445,104750.0,104740.0,0.84126993]
[1749918656563,0.6908445,104750.0,104740.0,1.20206993]
[1749918656956,0.8770045,104750.0,104740.0,1.20206993]
[1749918657156,0.8770045,104750.0,104740.0,0.84126993]
[1749918657357,0.6908445,104750.0,104740.0,1.17673411]
[1749918657564,0.8770045,104750.0,104740.0,0.81593411]
[1749918660561,0.8770045,104750.0,104740.0,0.61250594]
[1749918661468,0.6908445,104750.0,104740.0,0.61250594]
[1749918661657,0.8770045,104750.0,104740.0,0.97330594]
[1749918661860,0.8770045,104750.0,104740.0,0.61250594]
[1749918662967,0.8770045,104750.0,104740.0,0.42164324]
[1749918663164,0.8770045,104750.0,104740.0,0.61250594]
[1749918663358,0.8770045,104750.0,104740.0,0.42164324]
[1749918663563,0.8770045,104750.0,104740.0,0.61250594]
[1749918665472,0.5,104750.0,104740.0,1.47203411]
[1749918665659,0.5,104750.0,104740.0,1.51673127]
[1749918665863,0.6908444,104750.0,104740.0,1.51673127]
[1749918666670,0.5,104750.0,104740.0,1.51673127]
[1749918666865,0.6908444,104750.0,104740.0,1.51973127]
[1749918667061,0.5,104750.0,104740.0,1.58133822]
[1749918667258,0.5,104750.0,104740.0,1.53664106]
[1749918667259,0.6908444,104750.0,104740.0,1.53664106]
[1749918667462,0.5,104750.0,104740.0,1.53664106]
[1749918667659,0.6908444,104750.0,104740.0,1.53664106]
[1749918668065,0.6908444,104750.0,104740.0,1.53464106]
[1749918668263,0.6908444,104750.0,104740.0,1.53564106]
[1749918668466,0.6908444,104750.0,104740.0,1.53764106]
[1749918669266,0.6908444,104750.0,104740.0,1.53864106]
[1749918670375,0.6908444,104750.0,104740.0,1.62795095]
[1749918671174,0.5,104750.0,104740.0,1.62795095]
[1749918673571,0.28639734,104760.0,104750.0,0.1908445]
[1749918673775,0.28639734,104760.0,104750.0,2.168295]
[1749918673973,0.23868844,104760.0,104750.0,2.168295]
[1749918674670,0.73868844,104760.0,104750.0,2.168295]
[1749918674877,0.73868844,104760.0,104750.0,2.172295]
[1749918675376,0.73868844,104760.0,104750.0,2.17230712]
[1749918675775,0.73868844,104760.0,104750.0,2.17030712]
[1749918677070,0.73868844,104760.0,104750.0,2.16830712]
[1749918677275,0.73868844,104760.0,104750.0,2.46360712]
[1749918677770,0.73868844,104760.0,104750.0,2.46352712]
[1749918678582,0.69098104,104760.0,104750.0,2.46352712]
[1749918680079,0.69098104,104760.0,104750.0,2.52313407]
[1749918680678,0.69098104,104760.0,104750.0,2.55553407]
[1749918681882,0.50014324,104760.0,104750.0,2.55553407]
[1749918682185,0.69096944,104760.0,104750.0,2.55553407]
[1749918683576,0.69096944,104760.0,104750.0,2.56503773]
[1749918684380,0.19096944,104760.0,104750.0,2.56503773]
[1749918684781,0.00014324,104760.0,104750.0,2.56503773]
[1749918684982,0.19096954,104760.0,104750.0,2.56503773]
[1749918687175,0.19096954,104760.0,104750.0,2.59040667]
[1749918687373,0.19096954,104760.0,104750.0,2.58090301]
[1749918688692,0.19096954,104760.0,104750.0,2.59041334]
[1749918689083,0.00014324,104760.0,104750.0,2.59041334]
[1749918689291,0.19096954,104760.0,104750.0,2.54579889]
[1749918690091,0.19096954,104760.0,104750.0,2.30749145]
[1749918690289,0.19096954,104760.0,104750.0,2.53628856]
[1749918692298,0.19096954,104760.0,104750.0,2.63524501]
[1749918692698,0.19096954,104760.0,104750.0,2.62559845]
[1749918695395,0.19096954,104760.0,104750.0,2.6352774]
[1749918695595,0.19096954,104760.0,104750.0,2.62559845]
[1749918695798,0.41976665,104760.0,104750.0,2.62535845]
[1749918695997,0.19096954,104760.0,104750.0,2.62535845]
[1749918696199,0.45166665,104760.0,104750.0,2.62535845]
[1749918696503,0.45166665,104760.0,104750.0,1.42356134]
[1749918696705,0.48176665,104760.0,104750.0,1.93808277]
[1749918696904,0.87296665,104760.0,104750.0,0.96508277]
[1749918697097,1.5412145,104760.0,104750.0,0.72965565]
[1749918697402,1.79631897,104760.0,104750.0,1.45738727]
[1749918697602,1.37686823,104760.0,104750.0,1.45738727]
[1749918697798,1.38100658,104760.0,104750.0,1.23738727]
[1749918698003,1.38200658,104760.0,104750.0,1.23738727]
[1749918698204,1.44354924,104760.0,104750.0,0.45002727]
[1749918698602,1.79354924,104760.0,104750.0,0.45002727]
[1749918698808,1.38400658,104760.0,104750.0,1.19242]
[1749918699199,1.18941547,104760.0,104750.0,0.4053]
[1749918699606,2.06941547,104760.0,104750.0,0.4053]
[1749918699909,1.68941547,104760.0,104750.0,0.4053]
[1749918700101,2.01941547,104760.0,104750.0,0.4053]
[1749918700299,1.68941547,104760.0,104750.0,0.4053]
[1749918700506,1.62988885,104760.0,104750.0,0.4053]
[1749918701010,1.62988885,104760.0,104750.0,0.11]
[1749918701506,1.94988885,104760.0,104750.0,0.11]
[1749918701704,1.62988885,104760.0,104750.0,0.11]
[1749918702101,1.96988885,104760.0,104750.0,0.11]
[1749918702303,1.62988885,104760.0,104750.0,0.11]
[1749918703009,1.42641236,104760.0,104750.0,0.11]
[1749918703205,1.62988885,104760.0,104750.0,0.11]
[1749918703910,1.95988885,104760.0,104750.0,0.11]
[1749918704205,1.62988885,104760.0,104750.0,0.11]
[1749918704509,1.95988885,104760.0,104750.0,0.11]
[1749918704708,1.62988885,104760.0,104750.0,0.11]
[1749918704906,0.1908445,104750.0,104740.0,1.07072591]
[1749918705109,0.67510753,104750.0,104740.0,1.12730324]
[1749918705407,0.48426303,104750.0,104740.0,1.31816594]
[1749918705609,0.67510753,104750.0,104740.0,0.53100594]
[1749918705806,0.67510753,104750.0,104740.0,1.31816594]
[1749918706211,1.17510753,104750.0,104740.0,1.31816594]
[1749918707503,0.99761942,104750.0,104740.0,1.31816594]
[1749918707705,0.63681942,104750.0,104740.0,0.56290594]
[1749918708204,0.63681942,104750.0,104740.0,0.59580594]
[1749918708410,0.99761942,104750.0,104740.0,0.59580594]
[1749918708610,0.63681942,104750.0,104740.0,0.59580594]
[1749918708913,0.99761942,104750.0,104740.0,0.59580594]
[1749918711117,1.00175777,104750.0,104740.0,0.59580594]
[1749918711414,1.03265777,104750.0,104740.0,0.59580594]
[1749918712713,1.23613426,104750.0,104740.0,0.37204324]
[1749918712908,1.26823426,104750.0,104740.0,0.37204324]
[1749918714805,1.06475777,104750.0,104740.0,0.37204324]
[1749918715011,1.06475777,104750.0,104740.0,0.56290594]
[1749918715313,0.64095777,104750.0,104740.0,0.79868243]
[1749918715515,0.64095777,104750.0,104740.0,0.83008243]
[1749918716116,0.63681942,104750.0,104740.0,0.83008243]
[1749918719216,0.64095777,104750.0,104740.0,0.83008243]
[1749918720215,0.63681942,104750.0,104740.0,0.83008243]
[1749918720911,0.63681942,104750.0,104740.0,1.2356097]
[1749918721115,0.63681942,104750.0,104740.0,0.8748097]
[1749918721418,1.05580055,104750.0,104740.0,0.90021599]
[1749918721614,1.05580055,104750.0,104740.0,1.26101599]
[1749918722114,0.82691777,104750.0,104740.0,1.26101599]
[1749918723320,0.64095777,104750.0,104740.0,1.26101599]
[1749918723519,0.82691777,104750.0,104740.0,1.26101599]
[1749918724412,1.05580055,104750.0,104740.0,1.03213321]
[1749918724618,1.08800055,104750.0,104740.0,1.26101599]
[1749918724820,1.08800055,104750.0,104740.0,1.27946189]
[1749918725318,1.08800055,104750.0,104740.0,1.08859919]
[1749918725529,1.44880055,104750.0,104740.0,0.69639919]
[1749918725710,1.44880055,104750.0,104740.0,0.66409919]
[1749918725711,1.48070055,104750.0,104740.0,0.66409919]
[1749918726219,1.56988502,104750.0,104740.0,0.66409919]
[1749918726414,1.56988502,104750.0,104740.0,0.43521641]
[1749918726815,1.56988502,104750.0,104740.0,0.39048914]
[1749918727008,1.60248502,104750.0,104740.0,0.39048914]
[1749918727211,1.57709444,104750.0,104740.0,0.43521641]
[1749918727620,1.54449444,104750.0,104740.0,0.46641641]
[1749918728121,1.34100224,104750.0,104740.0,0.46641641]
[1749918731418,1.72100224,104750.0,104740.0,0.40331641]
[1749918731717,2.36343444,104750.0,104740.0,0.40331641]
[1749918731925,2.36343444,104750.0,104740.0,0.35858914]
[1749918732224,2.72343444,104750.0,104740.0,0.14858914]
[1749918732423,2.69343444,104750.0,104740.0,0.13014324]
[1749918732616,2.73343444,104750.0,104740.0,0.13014324]
[1749918732919,2.36343444,104750.0,104740.0,0.13014324]
[1749918733119,2.69343444,104750.0,104740.0,0.13014324]
[1749918733520,2.72343444,104750.0,104740.0,0.13014324]
[1749918733717,2.69343444,104750.0,104740.0,0.13014324]
[1749918733917,2.36343444,104750.0,104740.0,0.13014324]
[1749918734517,2.68343444,104750.0,104740.0,0.13014324]
[1749918734717,2.70343444,104750.0,104740.0,0.13014324]
[1749918734917,2.36343444,104750.0,104740.0,0.13014324]
[1749918735316,2.70343444,104750.0,104740.0,0.13014324]
[1749918735618,2.36343444,104750.0,104740.0,0.13014324]
[1749918736410,2.61343444,104750.0,104740.0,0.13014324]
[1749918736815,2.74343444,104750.0,104740.0,0.13014324]
[1749918737011,2.36343444,104750.0,104740.0,0.13014324]
[1749918737615,2.35929609,104750.0,104740.0,0.13014324]
[1749918738824,2.71929609,104750.0,104740.0,0.13014324]
[1749918739029,2.69929609,104750.0,104740.0,0.13014324]
[1749918739324,2.35929609,104750.0,104740.0,0.13014324]
[1749918739625,2.73929609,104750.0,104740.0,0.13014324]
[1749918742115,2.65011162,104750.0,104740.0,0.13014324]
[1749918742824,2.65011162,104750.0,104720.0,0.5911547]
[1749918742825,0.190881,104730.0,104720.0,0.0303]
[1749918743017,1.08973767,104730.0,104720.0,0.32381998]
[1749918743222,1.90696046,104730.0,104720.0,0.32381998]
[1749918743422,1.90696046,104730.0,104720.0,0.32389569]
[1749918743822,1.70346826,104730.0,104720.0,0.32389569]
[1749918744024,1.70546826,104730.0,104720.0,0.32389569]
[1749918744222,1.70546826,104730.0,104720.0,0.32389222]
[1749918744526,1.71592313,104730.0,104720.0,0.32389229]
[1749918744722,2.45041533,104730.0,104720.0,0.32389229]
[1749918744927,2.39100675,104730.0,104720.0,0.32389549]
[1749918745127,2.18751455,104730.0,104720.0,0.32389549]
[1749918745628,2.30186807,104730.0,104720.0,0.32389549]
[1749918745822,2.30186807,104730.0,104720.0,0.32390554]
[1749918746023,2.45031195,104730.0,104720.0,0.32390554]
[1749918746223,2.45031195,104730.0,104720.0,0.32390075]
[1749918746626,2.21581975,104730.0,104720.0,0.31062251]
[1749918749426,3.71581975,104730.0,104720.0,0.31062251]
[1749918750427,3.59675342,104730.0,104720.0,0.34202251]
[1749918753132,3.59675342,104730.0,104720.0,0.31062251]
[1749918753326,3.62785342,104730.0,104720.0,0.31062251]
[1749918753529,3.83134562,104730.0,104720.0,0.31062251]
[1749918755232,2.88363266,104730.0,104720.0,0.31062251]
[1749918755433,3.85695266,104730.0,104720.0,0.53964175]
[1749918755946,3.85695266,104730.0,104720.0,0.31062251]
[1749918757249,3.83150111,104730.0,104720.0,0.31062251]
[1749918757649,3.62793342,104730.0,104720.0,0.31062251]
[1749918760052,3.83150111,104730.0,104720.0,0.31062251]
[1749918762749,3.86420111,104730.0,104720.0,0.31062251]
[1749918763353,3.95326744,104730.0,104720.0,0.31062251]
[1749918764055,3.75091608,104730.0,104720.0,0.31062251]
[1749918764249,2.44179708,104730.0,104720.0,0.31062251]
[1749918764446,2.81179708,104730.0,104720.0,0.25]
[1749918764749,0.1908992,104720.0,104710.0,0.10661673]
[1749918765058,0.81465933,104720.0,104710.0,0.40194324]
[1749918765754,0.75029164,104720.0,104710.0,0.59286064]
[1749918765964,0.75029164,104720.0,104710.0,0.43454324]
[1749918766144,1.11109164,104720.0,104710.0,0.43454324]
[1749918766457,1.18799432,104720.0,104710.0,0.43454324]
[1749918766655,1.18799432,104720.0,104710.0,0.43654324]
[1749918769963,1.18799432,104720.0,104710.0,0.62746064]
[1749918770156,1.18799432,104720.0,104710.0,0.43654324]
[1749918771155,1.18799432,104720.0,104710.0,0.44068159]
[1749918771355,1.27706065,104720.0,104710.0,0.48535508]
[1749918771657,1.27706065,104720.0,104710.0,0.44068159]
[1749918771964,1.48062834,104720.0,104710.0,0.40808159]
[1749918772152,1.54242834,104720.0,104710.0,0.37314324]
[1749918772661,1.5131359,104720.0,104710.0,0.37314324]
[1749918773358,1.5131359,104720.0,104710.0,0.34214324]
[1749918773860,2.6584159,104720.0,104710.0,0.13214324]
[1749918774055,0.1909356,104700.0,104690.0,0.07667349]
[1749918774255,1.00074492,104700.0,104690.0,0.41648852]
[1749918774457,1.03154492,104700.0,104690.0,0.41648852]
[1749918774761,1.06364492,104700.0,104690.0,0.41648852]
[1749918775061,1.15280736,104700.0,104690.0,0.41648852]
[1749918775449,1.15280736,104700.0,104690.0,0.38448852]
[1749918775647,1.44923967,104700.0,104690.0,0.38448852]
[1749918775856,1.68490736,104700.0,104690.0,0.38448852]
[1749918776056,0.1909721,104680.0,104670.0,0.10424158]
[1749918776261,0.1909904,104670.0,104660.0,0.2715548]
[1749918776561,1.39847236,104680.0,104670.0,0.1909904]
[1749918776763,1.58447236,104680.0,104670.0,0.5966904]
[1749918776951,0.5517846,104680.0,104670.0,0.80025809]
[1749918777258,0.1909721,104680.0,104670.0,1.25653289]
[1749918777461,0.1909721,104680.0,104670.0,1.0102207]
[1749918777663,0.1909721,104680.0,104670.0,0.80524479]
[1749918777967,0.6909721,104680.0,104670.0,0.6016904]
[1749918778364,1.0517721,104680.0,104670.0,0.80525809]
[1749918778566,1.0517721,104680.0,104670.0,0.6016904]
[1749918778761,1.0517721,104680.0,104670.0,0.4107]
[1749918778970,1.0517721,104680.0,104670.0,0.5976904]
[1749918779162,1.0517721,104680.0,104670.0,0.4067]
[1749918779363,1.0517721,104680.0,104670.0,0.5996904]
[1749918779865,0.6909721,104680.0,104670.0,0.80325809]
[1749918780165,0.6909721,104680.0,104670.0,0.4087]
[1749918780358,1.0517721,104680.0,104670.0,0.4087]
[1749918780660,1.0517721,104680.0,104670.0,0.5996904]
[1749918780661,0.87030509,104680.0,104670.0,0.5996904]
[1749918780861,1.06127719,104680.0,104670.0,0.5996904]
[1749918781868,0.70047719,104680.0,104670.0,0.5996904]
[1749918782074,0.88651719,104680.0,104670.0,0.5996904]
[1749918782667,1.24731719,104680.0,104670.0,0.80325809]
[1749918783469,1.24731719,104680.0,104670.0,0.5996904]
[1749918783870,0.70047719,104680.0,104670.0,0.5996904]
[1749918784066,0.88651719,104680.0,104670.0,0.5996904]
[1749918784766,0.8770121,104680.0,104670.0,0.80325809]
[1749918786270,0.6909721,104680.0,104670.0,0.80325809]
[1749918786770,0.6909721,104680.0,104670.0,2.24907809]
[1749918787276,0.5,104680.0,104670.0,2.24907809]
[1749918787471,0.6909721,104680.0,104670.0,2.34461409]
[1749918788074,0.5,104680.0,104670.0,2.34461409]
[1749918788576,0.6909721,104680.0,104670.0,2.34461409]
[1749918789479,0.1909721,104680.0,104670.0,2.34461409]
[1749918789681,0.1909721,104680.0,104670.0,1.3513264]
[1749918789980,0.1909721,104680.0,104670.0,2.53197409]
[1749918790477,0.1909721,104680.0,104670.0,1.45935809]
[1749918790678,0.1909721,104680.0,104670.0,2.43815809]
[1749918790873,0.1909721,104680.0,104670.0,1.45935809]
[1749918791074,0.1909721,104680.0,104670.0,2.43815809]
[1749918791677,0.6909721,104680.0,104670.0,2.43815809]
[1749918792373,0.6909721,104680.0,104670.0,2.43799809]
[1749918792784,0.6909721,104680.0,104670.0,2.2344304]
[1749918793273,0.6909721,104680.0,104670.0,2.43799809]
[1749918794874,0.6909721,104680.0,104670.0,2.2344304]
[1749918795069,0.6909721,104680.0,104670.0,1.2557904]
[1749918795271,0.6909721,104680.0,104670.0,2.2343104]
[1749918795579,0.6909721,104680.0,104670.0,1.45935809]
[1749918795873,0.6909721,104680.0,104670.0,2.43787809]
[1749918796175,0.6909721,104680.0,104670.0,1.45935809]
[1749918796371,1.0517721,104680.0,104670.0,1.6862704]
[1749918796572,1.0517721,104680.0,104670.0,0.8949904]
[1749918796878,1.0843721,104680.0,104670.0,1.6871504]
[1749918797074,1.2716521,104680.0,104670.0,0.8628904]
[1749918797272,1.2716521,104680.0,104670.0,1.85861809]
[1749918797579,0.6909721,104680.0,104670.0,1.85861809]
[1749918797781,0.6909721,104680.0,104670.0,1.88991809]
[1749918798180,0.6909721,104680.0,104670.0,1.6863504]
[1749918798369,0.6909721,104680.0,104670.0,2.0471504]
[1749918798573,0.6909721,104680.0,104670.0,2.25071809]
[1749918798778,0.6909721,104680.0,104670.0,2.0471504]
[1749918798985,0.6909721,104680.0,104670.0,2.25071809]
[1749918801282,0.6909721,104680.0,104670.0,2.0471504]
[1749918801487,0.6909721,104680.0,104670.0,2.25071809]
[1749918801783,0.6909721,104680.0,104670.0,2.25371809]
[1749918801983,0.6909721,104680.0,104670.0,1.45855809]
[1749918802171,1.0517721,104680.0,104670.0,0.8628904]
[1749918802369,1.0840721,104680.0,104670.0,0.8312904]
[1749918802582,1.1150721,104680.0,104670.0,0.8312904]
[1749918802880,1.20673986,104680.0,104670.0,1.6266504]
[1749918803075,1.20673986,104680.0,104670.0,1.6266904]
[1749918803281,1.20673986,104680.0,104670.0,0.8312904]
[1749918803478,1.20673986,104680.0,104670.0,1.6266104]
[1749918803684,1.20673986,104680.0,104670.0,0.6403]
[1749918803881,1.20673986,104680.0,104670.0,0.7992904]
[1749918804290,1.20673986,104680.0,104670.0,0.6083]
[1749918804485,1.20673986,104680.0,104670.0,0.5039905]
[1749918804982,1.17443986,104680.0,104670.0,0.5360905]
[1749918805285,1.17443986,104680.0,104670.0,0.5664905]
[1749918811988,1.17443986,104680.0,104670.0,0.3755]
[1749918812388,1.17443986,104680.0,104670.0,0.5664906]
[1749918813088,1.17443986,104680.0,104670.0,0.3755]
[1749918814685,1.17443986,104680.0,104670.0,0.5664905]
[1749918814887,1.17443986,104680.0,104670.0,0.3755]
[1749918815298,1.17443986,104680.0,104670.0,0.3451]
[1749918815495,1.20643986,104680.0,104670.0,0.3451]
[1749918817498,1.20643986,104680.0,104670.0,0.313]
[1749918818901,1.49916999,104680.0,104670.0,0.313]
[1749918819998,1.49916999,104680.0,104670.0,0.312]
[1749918820203,1.50016999,104680.0,104670.0,0.312]
[1749918820998,2.29368999,104680.0,104670.0,0.312]
[1749918821194,2.29368999,104680.0,104670.0,0.31]
[1749918821894,2.23432223,104680.0,104670.0,0.31]
[1749918822298,2.23432223,104680.0,104670.0,0.32323417]
[1749918822502,2.23432223,104680.0,104670.0,0.31]
[1749918824198,2.03075454,104680.0,104670.0,0.31]
[1749918824504,3.05996223,104680.0,104670.0,0.31]
[1749918825397,3.40996223,104680.0,104670.0,0.31]
[1749918825598,3.05996223,104680.0,104670.0,0.31]
[1749918826202,0.1909905,104670.0,104660.0,0.32215656]
[1749918826502,0.61124329,104670.0,104660.0,0.70195656]
[1749918827291,0.61124329,104670.0,104660.0,0.70395656]
[1749918827808,0.61124329,104670.0,104660.0,0.70495656]
[1749918828010,0.61124329,104670.0,104660.0,0.65720486]
[1749918828305,1.11124329,104670.0,104660.0,0.65720486]
[1749918828896,1.11124329,104670.0,104660.0,0.6384051]
[1749918830805,1.31481098,104670.0,104660.0,0.4154]
[1749918831005,1.95032329,104670.0,104660.0,0.3838]
[1749918831203,1.99038329,104670.0,104660.0,0.3838]
[1749918831510,2.55395098,104670.0,104660.0,0.3838]
[1749918831804,1.11124329,104670.0,104660.0,0.81037639]
[1749918832109,0.94960329,104670.0,104660.0,0.7009117]
[1749918832307,0.94960329,104670.0,104660.0,0.90447939]
[1749918832702,0.75044329,104670.0,104660.0,0.90447939]
[1749918832901,0.94960329,104670.0,104660.0,0.7009117]
[1749918833098,0.94960329,104670.0,104650.0,4e-08]
[1749918833099,0.0499,104660.0,104650.0,4e-08]
[1749918833406,0.2866167,104630.0,104610.0,0.24240901]
[1749918833605,0.87667978,104630.0,104620.0,1.02997991]
[1749918833800,0.01583064,104630.0,104620.0,1.36997991]
[1749918833997,0.19120674,104630.0,104620.0,1.6057476]
[1749918834202,0.00014324,104630.0,104620.0,1.9665476]
[1749918834406,0.2865854,104640.0,104630.0,0.1910635]
[1749918834596,0.2865854,104640.0,104630.0,1.3587517]
[1749918834801,0.2865854,104640.0,104630.0,1.7355197]
[1749918834802,0.2388196,104640.0,104630.0,1.7355197]
[1749918835202,0.5996196,104640.0,104630.0,0.82558401]
[1749918836105,0.5996196,104640.0,104630.0,0.87028065]
[1749918836506,0.5996196,104640.0,104630.0,0.87128065]
[1749918836507,1.0996196,104640.0,104630.0,0.87128065]
[1749918837415,1.1006196,104640.0,104630.0,0.87128065]
[1749918837912,1.1006196,104640.0,104630.0,0.90328065]
[1749918838412,0.501,104640.0,104630.0,1.5185197]
[1749918838613,0.4085489,104670.0,104650.0,0.2865156]
[1749918838911,0.80313579,104660.0,104650.0,1.1858]
[1749918839105,0.76955712,104670.0,104660.0,0.20422691]
[1749918839406,0.76955712,104670.0,104660.0,0.60888749]
[1749918839407,0.6950564,104670.0,104660.0,0.60888749]
[1749918840005,0.6980564,104670.0,104660.0,0.60888749]
[1749918840404,0.6980564,104670.0,104660.0,0.7677946]
[1749918840604,0.6950564,104670.0,104660.0,0.7677946]
[1749918840909,0.7000564,104670.0,104660.0,0.56422691]
[1749918841210,0.7000564,104670.0,104660.0,0.56836526]
[1749918841817,0.7000564,104670.0,104660.0,0.61302584]
[1749918842112,0.6950564,104670.0,104660.0,0.61302584]
[1749918842310,0.6970564,104670.0,104660.0,0.61302584]
[1749918843111,0.6970564,104670.0,104660.0,0.81659353]
[1749918843513,0.6970564,104670.0,104660.0,0.61302584]
[1749918844411,0.6970564,104670.0,104660.0,0.81659353]
[1749918844602,0.6970564,104670.0,104660.0,0.61302584]
[1749918844802,0.6970564,104670.0,104660.0,0.81659353]
[1749918846317,0.00014324,104680.0,104670.0,0.1909905]
[1749918846515,0.00014324,104680.0,104670.0,1.61852051]
[1749918846715,0.00014324,104680.0,104670.0,1.71405651]
[1749918846913,0.00014324,104680.0,104670.0,1.96405651]
[1749918847414,0.00014324,104680.0,104670.0,1.51048882]
[1749918847611,0.00014324,104680.0,104670.0,1.71405651]